Company Name,Sub Group,Service Area's,Expense Type,Narrative,Date,Transaction Number,Amount,Supplier Name,Supplier Ref,Period ,Year
Allerdale Borough Council,15401,Supplies & Services,Licensing Service,General Stationery,06/05/2020,450873,420,FIRPRESS PRINTERS,A00063,2,2020
Allerdale Borough Council,12201,Premises,Multi Storey Car Park Utilities & Maint,Internal Maintenance,20/05/2020,450874,318,TIVOLI GROUP LTD,A02568,2,2020
Allerdale Borough Council,12301,Premises,Multi Storey Car Park Utilities & Maint,Security,06/05/2020,450875,410,COMPASS SERVICES GROUP,A00839,2,2020
Allerdale Borough Council,12300,Premises,Camping & Caravan Sites,Budget-Facilities Management,06/05/2020,450876,12267,KESWICK TOWN COUNCIL,A00253,2,2020
Allerdale Borough Council,12405,Premises,Homelessness,Rentals and Lease Charges,06/05/2020,450877,220,CUMBERLAND HOTEL,A02415,2,2020
Allerdale Borough Council,12405,Premises,Homelessness,Rentals and Lease Charges,06/05/2020,450878,55,CUMBERLAND HOTEL,A02415,2,2020
Allerdale Borough Council,20150,Third Party Payments,Footway Lighting Scheme,General Partnership Service Fees,27/05/2020,450879,926,ELECTRICITY NORTH WEST LTD,A00471,2,2020
Allerdale Borough Council,15508,Supplies & Services,Economic Regeneration,Subscriptions,13/05/2020,450880,3250,BARNSLEY MBC - THE ALLIANCE,A00613,2,2020
Allerdale Borough Council,15102,Supplies & Services,Members Services,Equipment Repair & Maintenance,27/05/2020,450881,3920,NUWAY AUDIO VISUAL LTD,C00131,2,2020
Allerdale Borough Council,10110,Employee Costs,Busy Bees Childcare Scheme,Salary Sacrifice,13/05/2020,450882,23.1,COMPUTERSHARE VOUCHER SERVICES,A00991,2,2020
Allerdale Borough Council,10110,Employee Costs,Busy Bees Childcare Scheme,Salary Sacrifice,13/05/2020,450883,420,COMPUTERSHARE VOUCHER SERVICES,A00991,2,2020
Allerdale Borough Council,15405,Supplies & Services,Electoral Registration,Use of External Printers,06/05/2020,450884,295.41,ADARE SEC LIMITED,A02306,2,2020
Allerdale Borough Council,15601,Supplies & Services,Electoral Registration,Postage,06/05/2020,450885,30.11,ADARE SEC LIMITED,A02306,2,2020
Allerdale Borough Council,15811,Supplies & Services,ICT Infrastructure Costs,Software Maintenance,27/05/2020,450886,1077.12,ELITETELE.COM,A02517,2,2020
Allerdale Borough Council,15508,Supplies & Services,Street Scene,Subscriptions,20/05/2020,450887,4495,KEEP BRITAIN TIDY,A01034,2,2020
Allerdale Borough Council,15501,Supplies & Services,Street Cleansing,Consultants Fees,06/05/2020,450888,50,MICHAEL DOUGLAS AUTO SALVAGE,A00078,2,2020
Allerdale Borough Council,15101,Supplies & Services,Multi-storey Car Park,Equipment Costs,06/05/2020,450889,360,METRIC GROUP LTD,A00568,2,2020
Allerdale Borough Council,15102,Supplies & Services,Off-street - Owned,Equipment Repair & Maintenance,06/05/2020,450890,7.92,CHIPSIDE LIMITED,A00004,2,2020
Allerdale Borough Council,15102,Supplies & Services,Off-street - Owned,Equipment Repair & Maintenance,06/05/2020,450891,251.39,CHIPSIDE LIMITED,A00004,2,2020
Allerdale Borough Council,20302,Third Party Payments,Street Cleansing,Contract Services-Street Cleansing,27/05/2020,450892,124750,TIVOLI GROUP LTD,A02568,2,2020
Allerdale Borough Council,15101,Supplies & Services,Multi-storey Car Park,Equipment Costs,27/05/2020,450893,360,METRIC GROUP LTD,A00568,2,2020
Allerdale Borough Council,15501,Supplies & Services,Planning and Development,Consultants Fees,06/05/2020,450894,520.4,BOWFELL CONSULTING LTD,A02754,2,2020
Allerdale Borough Council,10200,Employee Costs,Human Resources Pay Group,Budget-Employee Expenses,13/05/2020,450895,240,Redacted information - included personal information ,A02594,2,2020
Allerdale Borough Council,10401,Employee Costs,Housing Improvement,Agency Staff Costs,06/05/2020,450896,731.25,G2 RECRUITMENT SOLUTIONS LTD,C00198,2,2020
Allerdale Borough Council,15506,Supplies & Services,Environmental Protection,Professional Services,20/05/2020,450897,277.6,HAYS SPECIALIST RECRUITMENT LTD,A00280,2,2020
Allerdale Borough Council,15508,Supplies & Services,Economic Regeneration,Subscriptions,06/05/2020,450898,925,NORTHERN HOUSING CONSORTIUM LIMITED,A00260,2,2020
Allerdale Borough Council,15101,Supplies & Services,Off-street - Owned,Equipment Costs,20/05/2020,450899,120.77,RELIANCE HIGH-TECH LTD,C00123,2,2020
Allerdale Borough Council,15601,Supplies & Services,Corporate Postage and Stationary,Postage,20/05/2020,450900,17771.9,RICOH UK LTD,A00037,2,2020
Allerdale Borough Council,14105,Transport,Allerdale Fleet,"Fuel, Lubricants & Consumables",20/05/2020,450901,149.35,BP OIL UK LTD ,X00022,2,2020
Allerdale Borough Council,14105,Transport,Solway Coast AONB Core Funding,"Fuel, Lubricants & Consumables",,450902,352,BP OIL UK LTD,X00022,2,2020
Allerdale Borough Council,12405,Premises,Homelessness,Rentals and Lease Charges,29/05/2020,450903,288.94,BARCLAYCARD COMMERCIAL ,X00207,2,2020
Allerdale Borough Council,15203,Supplies & Services,Solway Coast AONB Core Funding,Catering Costs and Consumables,29/05/2020,450904,1.7,BARCLAYCARD COMMERCIAL,X00207,2,2020
Allerdale Borough Council,15704,Supplies & Services,COVID-19 - Homelessness,Mobile Phones,29/05/2020,450905,96,BARCLAYCARD COMMERCIAL,X00207,2,2020
Allerdale Borough Council,15850,Supplies & Services,Solway Coast AONB Core Funding,General Computer Costs,29/05/2020,450906,43.91,BARCLAYCARD COMMERCIAL,X00207,2,2020
Allerdale Borough Council,15203,Supplies & Services,Solway Coast AONB Core Funding,Catering Costs and Consumables,29/05/2020,450907,3.7,BARCLAYCARD COMMERCIAL,X00207,2,2020
Allerdale Borough Council,15101,Supplies & Services,Homelessness,Equipment Costs,29/05/2020,450908,201.86,BARCLAYCARD COMMERCIAL,X00207,2,2020
Allerdale Borough Council,20111,Third Party Payments,Grants to Voluntary Organisation,Voluntary Organisations,06/05/2020,450909,14429,ALLERDALE DISABILITY ASSOC,M00270,2,2020
Allerdale Borough Council,20111,Third Party Payments,Grants to Voluntary Organisation,Voluntary Organisations,06/05/2020,450910,26400,CITIZENS ADVICE BUREAU,A01181,2,2020
Allerdale Borough Council,20111,Third Party Payments,Grants to Voluntary Organisation,Voluntary Organisations,06/05/2020,450911,19500,CUMBRIA LAW CENTRE,A01446,2,2020
Allerdale Borough Council,20111,Third Party Payments,Localities & Partnerships,Voluntary Organisations,06/05/2020,450912,1000,SOLWAY FIRTH PARTNERSHIP,A01548,2,2020
Allerdale Borough Council,54105,Capital Expenditure,Disabled Facilities Grants,Grants  Private Individuals (Capital),06/05/2020,450913,2698,THE EXCELLENT RAMP SYSTEM LTD,X00282,2,2020
Allerdale Borough Council,33117,Income,Off-street - Owned,Car Parks - Income from Machines,06/05/2020,450914,134.58,Redacted information - included personal information ,M01837,2,2020
Allerdale Borough Council,21150,Transfer Payments,Moorclose Community Centre,General Grants,06/05/2020,450915,10000,MOORCLOSE COMMUNITY CENTRE LTD,A00709,2,2020
Allerdale Borough Council,54105,Capital Expenditure,Healthy Homes,Grants  Private Individuals (Capital),06/05/2020,450916,508.55,Redacted information - included personal information ,M01809,2,2020
Allerdale Borough Council,15500,Supplies & Services,Environmental Protection,Budget-Services,13/05/2020,450918,130,WASTEKING LTD,A02758,2,2020
Allerdale Borough Council,15603,Supplies & Services,Corporate Postage and Stationary,Franking Machine Costs,06/05/2020,450919,650,FRANCOTYP POSTALIA LTD,A02187,2,2020
Allerdale Borough Council,15501,Supplies & Services,Siddick Pond - Water Environment Grant,Consultants Fees,20/05/2020,450921,1136.75,WARDELL ARMSTRONG LLP,A01676,2,2020
Allerdale Borough Council,15100,Supplies & Services,Domestic Waste,"Budget-Equipment, Furniture & Materials",20/05/2020,450922,3261.9,CRAEMER UK LTD,A01016,2,2020
Allerdale Borough Council,15101,Supplies & Services,Multi-storey Car Park,Equipment Costs,06/05/2020,450923,2392.56,METRIC GROUP LTD,A00568,2,2020
Allerdale Borough Council,15102,Supplies & Services,Replacement Parking Meters,Equipment Repair & Maintenance,27/05/2020,450924,25,CHIPSIDE LIMITED,A00004,2,2020
Allerdale Borough Council,15501,Supplies & Services,Planning and Development,Consultants Fees,06/05/2020,450925,270.2,TREESCAPES CONSULTANCY LTD,A02385,2,2020
Allerdale Borough Council,15703,Supplies & Services,IT Services,Call Charges,06/05/2020,450926,737.76,BRITISH TELECOMMUNICATIONS,X00004,2,2020
Allerdale Borough Council,15601,Supplies & Services,Electoral Registration,Postage,06/05/2020,450927,87.26,ROYAL MAIL LETTERS,X00021,2,2020
Allerdale Borough Council,15704,Supplies & Services,IT Services,Mobile Phones,06/05/2020,450928,46,VODAFONE,A00551,2,2020
Allerdale Borough Council,15804,Supplies & Services,IT Services,Computer Data Lines B.T.,06/05/2020,450929,4015.5,BRITISH TELECOMMUNICATIONS,X00004,2,2020
Allerdale Borough Council,12403,Premises,Homelessness,Gas,06/05/2020,450930,234.98,NPOWER,X00277,2,2020
Allerdale Borough Council,15506,Supplies & Services,Finance and Accounting Pay Group,Professional Services,06/05/2020,450931,3280,LAVAT CONSULTING LTD,A02544,2,2020
Allerdale Borough Council,16101,Supplies & Services,Planning and Development,Statutory Notices,20/05/2020,450932,254.8,NEWSQUEST MEDIA GROUP,A02348,2,2020
Allerdale Borough Council,12409,Premises,Insurances,Buildings and Contents Insurance,06/05/2020,450933,94086.73,JELF INS BROKERS LTD ,A02549,2,2020
Allerdale Borough Council,15516,Supplies & Services,Insurances,Insurance Services,06/05/2020,450934,1246.77,JELF INS BROKERS LTD ,A02549,2,2020
Allerdale Borough Council,14103,Transport,Insurances,Insurance Council Vehicles,06/05/2020,450935,13809.6,JELF INS BROKERS LTD ,A02549,2,2020
Allerdale Borough Council,15516,Supplies & Services,Insurances,Insurance Services,06/05/2020,450936,1540,JELF INS BROKERS LTD ,A02549,2,2020
Allerdale Borough Council,15516,Supplies & Services,Insurances,Insurance Services,06/05/2020,450937,8457.58,JELF INS BROKERS LTD ,A02549,2,2020
Allerdale Borough Council,15516,Supplies & Services,Insurances,Insurance Services,06/05/2020,450938,9800,JELF INS BROKERS LTD ,A02549,2,2020
Allerdale Borough Council,15704,Supplies & Services,IT Services,Mobile Phones,06/05/2020,450939,-533.61,VODAFONE,A00934,2,2020
Allerdale Borough Council,15704,Supplies & Services,IT Services,Mobile Phones,06/05/2020,450940,4831.14,VODAFONE,A00934,2,2020
Allerdale Borough Council,15804,Supplies & Services,IT Services,Computer Data Lines B.T.,06/05/2020,450941,17098.01,BRITISH TELECOMMUNICATIONS,X00004,2,2020
Allerdale Borough Council,12408,Premises,Corporate Property Maintenance,Water & Sewage,06/05/2020,450942,1.53,SCOTTISH WATER BUSINESS STREAM LTD,X00271,2,2020
Allerdale Borough Council,12408,Premises,Corporate Property Maintenance,Water & Sewage,06/05/2020,450943,1662.95,SCOTTISH WATER BUSINESS STREAM LTD,X00271,2,2020
Allerdale Borough Council,12408,Premises,Car Parks Inspection & Maintenance,Water & Sewage,06/05/2020,450944,594.47,SCOTTISH WATER BUSINESS STREAM LTD,X00271,2,2020
Allerdale Borough Council,12408,Premises,Corporate Property Maintenance,Water & Sewage,06/05/2020,450945,149.59,SCOTTISH WATER BUSINESS STREAM LTD,X00271,2,2020
Allerdale Borough Council,12408,Premises,Corporate Property Maintenance,Water & Sewage,06/05/2020,450946,1662.95,SCOTTISH WATER BUSINESS STREAM LTD,X00271,2,2020
Allerdale Borough Council,12408,Premises,Corporate Property Maintenance,Water & Sewage,06/05/2020,450947,132.78,SCOTTISH WATER BUSINESS STREAM LTD,X00271,2,2020
Allerdale Borough Council,12408,Premises,Car Parks Inspection & Maintenance,Water & Sewage,06/05/2020,450948,166.45,SCOTTISH WATER BUSINESS STREAM LTD,X00271,2,2020
Allerdale Borough Council,15704,Supplies & Services,IT Services,Mobile Phones,06/05/2020,450949,46,VODAFONE,A00551,2,2020
Allerdale Borough Council,12408,Premises,Corporate Property Maintenance,Water & Sewage,06/05/2020,450950,4.49,SCOTTISH WATER BUSINESS STREAM LTD,X00271,2,2020
Allerdale Borough Council,12405,Premises,Homelessness,Rentals and Lease Charges,13/05/2020,450951,165,CUMBERLAND HOTEL,A02415,2,2020
Allerdale Borough Council,12405,Premises,Homelessness,Rentals and Lease Charges,13/05/2020,450952,55,CUMBERLAND HOTEL,A02415,2,2020
Allerdale Borough Council,12405,Premises,Homelessness,Rentals and Lease Charges,13/05/2020,450953,315,CUMBERLAND HOTEL,A02415,2,2020
Allerdale Borough Council,12405,Premises,Homelessness,Rentals and Lease Charges,13/05/2020,450954,315,CUMBERLAND HOTEL,A02415,2,2020
Allerdale Borough Council,12405,Premises,Homelessness,Rentals and Lease Charges,13/05/2020,450955,55,CUMBERLAND HOTEL,A02415,2,2020
Allerdale Borough Council,12405,Premises,Homelessness,Rentals and Lease Charges,13/05/2020,450956,110,CUMBERLAND HOTEL,A02415,2,2020
Allerdale Borough Council,12405,Premises,Homelessness,Rentals and Lease Charges,13/05/2020,450957,315,CUMBERLAND HOTEL,A02415,2,2020
Allerdale Borough Council,12405,Premises,Homelessness,Rentals and Lease Charges,13/05/2020,450958,55,CUMBERLAND HOTEL,A02415,2,2020
Allerdale Borough Council,15811,Supplies & Services,Arcus,Software Maintenance,13/05/2020,450959,190,FERRET INFORMATION SYSTEMS LTD,A02057,2,2020
Allerdale Borough Council,15810,Supplies & Services,IT Services,Software Licences,13/05/2020,450960,10954.93,PROOFID LTD,A02561,2,2020
Allerdale Borough Council,15811,Supplies & Services,IT Services,Software Maintenance,13/05/2020,450961,257.54,PHOENIX SOFTWARE LTD,A00229,2,2020
Allerdale Borough Council,15810,Supplies & Services,IT Services,Software Licences,13/05/2020,450962,2515.2,LOGMEIN TECHNOLOGIES UK TD,A02565,2,2020
Allerdale Borough Council,15811,Supplies & Services,Arcus,Software Maintenance,13/05/2020,450963,1500,NORTH LINCOLNSHIRE COUNCIL,A02681,2,2020
Allerdale Borough Council,15813,Supplies & Services,Arcus,Software Miscellaneous,13/05/2020,450964,500,ARCUS GLOBAL LTD,A02496,2,2020
Allerdale Borough Council,15810,Supplies & Services,TELCO IN A BOX (TIAB),Software Licences,27/05/2020,450965,2355.84,PHOENIX SOFTWARE LTD,A00229,2,2020
Allerdale Borough Council,15811,Supplies & Services,ICT Infrastructure Costs,Software Maintenance,27/05/2020,450966,1125.76,ELITETELE.COM,A02517,2,2020
Allerdale Borough Council,12405,Premises,Homelessness,Rentals and Lease Charges,13/05/2020,450967,315,CUMBERLAND HOTEL,A02415,2,2020
Allerdale Borough Council,12405,Premises,Homelessness,Rentals and Lease Charges,13/05/2020,450968,385,CUMBERLAND HOTEL,A02415,2,2020
Allerdale Borough Council,12405,Premises,Homelessness,Rentals and Lease Charges,13/05/2020,450969,385,CUMBERLAND HOTEL,A02415,2,2020
Allerdale Borough Council,12405,Premises,Homelessness,Rentals and Lease Charges,13/05/2020,450970,165,CUMBERLAND HOTEL,A02415,2,2020
Allerdale Borough Council,12405,Premises,Homelessness,Rentals and Lease Charges,13/05/2020,450971,385,CUMBERLAND HOTEL,A02415,2,2020
Allerdale Borough Council,12405,Premises,Homelessness,Rentals and Lease Charges,13/05/2020,450972,315,CUMBERLAND HOTEL,A02415,2,2020
Allerdale Borough Council,12405,Premises,Homelessness,Rentals and Lease Charges,13/05/2020,450973,550,CUMBERLAND HOTEL,A02415,2,2020
Allerdale Borough Council,12405,Premises,Homelessness,Rentals and Lease Charges,13/05/2020,450974,275,CUMBERLAND HOTEL,A02415,2,2020
Allerdale Borough Council,12405,Premises,Homelessness,Rentals and Lease Charges,13/05/2020,450975,275,CUMBERLAND HOTEL,A02415,2,2020
Allerdale Borough Council,12405,Premises,Homelessness,Rentals and Lease Charges,13/05/2020,450976,385,CUMBERLAND HOTEL,A02415,2,2020
Allerdale Borough Council,12405,Premises,Homelessness,Rentals and Lease Charges,13/05/2020,450977,385,CUMBERLAND HOTEL,A02415,2,2020
Allerdale Borough Council,12405,Premises,Homelessness,Rentals and Lease Charges,13/05/2020,450978,315,CUMBERLAND HOTEL,A02415,2,2020
Allerdale Borough Council,12405,Premises,Homelessness,Rentals and Lease Charges,13/05/2020,450979,350,CUMBERLAND HOTEL,A02415,2,2020
Allerdale Borough Council,12405,Premises,Homelessness,Rentals and Lease Charges,13/05/2020,450980,385,CUMBERLAND HOTEL,A02415,2,2020
Allerdale Borough Council,12405,Premises,Homelessness,Rentals and Lease Charges,13/05/2020,450981,275,CUMBERLAND HOTEL,A02415,2,2020
Allerdale Borough Council,12405,Premises,Homelessness,Rentals and Lease Charges,13/05/2020,450982,490,CUMBERLAND HOTEL,A02415,2,2020
Allerdale Borough Council,12405,Premises,Homelessness,Rentals and Lease Charges,13/05/2020,450983,385,CUMBERLAND HOTEL,A02415,2,2020
Allerdale Borough Council,10601,Employee Costs,Training,External Courses & Seminar Fees,,450985,165,INSTITUTE OF LICENSING (EVENTS) LTD,A00315,2,2020
Allerdale Borough Council,10601,Employee Costs,Training,External Courses & Seminar Fees,,450986,247,INSTITUTE OF LICENSING (EVENTS) LTD,A00315,2,2020
Allerdale Borough Council,15506,Supplies & Services,Economic Regeneration,Professional Services,27/05/2020,450987,31657.9,WINNING MOVES LTD,A02740,2,2020
Allerdale Borough Council,15500,Supplies & Services,Economic Regeneration,Budget-Services,13/05/2020,450988,660,BAKER MALLETT,A00073,2,2020
Allerdale Borough Council,15508,Supplies & Services,Corporate Management,Subscriptions,27/05/2020,450989,975,DISTRICT COUNCILS NETWORK,A01466,2,2020
Allerdale Borough Council,10114,Employee Costs,"Revenues, Benefits & Recovery Paygroup",Agency to Cover Established Post,13/05/2020,450990,516.16,ADECCO RECRUITMENT,A00188,2,2020
Allerdale Borough Council,10114,Employee Costs,"Revenues, Benefits & Recovery Paygroup",Agency to Cover Established Post,13/05/2020,450991,496,ADECCO RECRUITMENT,A00188,2,2020
Allerdale Borough Council,15506,Supplies & Services,Reedlands Road Industrial Development,Professional Services,20/05/2020,450992,3470.34,PERFECT CIRCLE JV LTD,A02478,2,2020
Allerdale Borough Council,20300,Third Party Payments,Maryport Wave,Budget-Contract Services,13/05/2020,450993,31906.66,GREENWICH LEISURE LTD,A00136,2,2020
Allerdale Borough Council,15601,Supplies & Services,Corporate Postage and Stationary,Postage,13/05/2020,450994,753.05,UK MAIL GROUP PLC,A02371,2,2020
Allerdale Borough Council,15601,Supplies & Services,Corporate Postage and Stationary,Postage,13/05/2020,450995,1228.8,UK MAIL GROUP PLC,A02371,2,2020
Allerdale Borough Council,15601,Supplies & Services,Corporate Postage and Stationary,Postage,13/05/2020,450996,715.22,UK MAIL GROUP PLC,A02371,2,2020
Allerdale Borough Council,12303,Premises,Corporate Property Maintenance,Window Cleaning,13/05/2020,450997,455,BORDERBRITE LTD,C00155,2,2020
Allerdale Borough Council,12101,Premises,Multi Storey Car Park Utilities & Maint,External Maintenance & Decoration,20/05/2020,450998,110,NT CLEANERS LTD,A01350,2,2020
Allerdale Borough Council,15508,Supplies & Services,Solway Coast AONB Core Funding,Subscriptions,20/05/2020,450999,100,EUROPARC,A00766,2,2020
Allerdale Borough Council,15102,Supplies & Services,Off-street - Owned,Equipment Repair & Maintenance,27/05/2020,451000,38.63,CHIPSIDE LIMITED,A00004,2,2020
Allerdale Borough Council,15506,Supplies & Services,Environmental Protection,Professional Services,27/05/2020,451001,277.6,HAYS SPECIALIST RECRUITMENT LTD,A00280,2,2020
Allerdale Borough Council,15501,Supplies & Services,Street Cleansing,Consultants Fees,13/05/2020,451002,50,MICHAEL DOUGLAS AUTO SALVAGE,A00078,2,2020
Allerdale Borough Council,15501,Supplies & Services,Street Cleansing,Consultants Fees,13/05/2020,451003,50,MICHAEL DOUGLAS AUTO SALVAGE,A00078,2,2020
Allerdale Borough Council,12101,Premises,Car Parks Inspection & Maintenance,External Maintenance & Decoration,13/05/2020,451004,1293,ASHCROFT DEMOLITION (CUMBRIA) LTD,C00197,2,2020
Allerdale Borough Council,12101,Premises,Car Parks Inspection & Maintenance,External Maintenance & Decoration,13/05/2020,451005,394,ASHCROFT DEMOLITION (CUMBRIA) LTD,C00197,2,2020
Allerdale Borough Council,15501,Supplies & Services,Building Control - Chargeable,Consultants Fees,13/05/2020,451006,106,ASHCROFT DEMOLITION (CUMBRIA) LTD,C00197,2,2020
Allerdale Borough Council,20150,Third Party Payments,Keswick Public Toliets,General Partnership Service Fees,13/05/2020,451007,2350,ASHCROFT DEMOLITION (CUMBRIA) LTD,C00197,2,2020
Allerdale Borough Council,15813,Supplies & Services,Waste Company,Software Miscellaneous,,451008,168,SAGE (UK) LTD,A01911,2,2020
Allerdale Borough Council,10401,Employee Costs,Licensing Agency Staff,Agency Staff Costs,13/05/2020,451009,612.94,ADECCO RECRUITMENT,A00188,2,2020
Allerdale Borough Council,15811,Supplies & Services,IT Services,Software Maintenance,,451010,5721,CONTRACT DATA RESEARCH LTD,A00393,2,2020
Allerdale Borough Council,10114,Employee Costs,"Business Support Unit, Devt Services",Agency to Cover Established Post,13/05/2020,451011,48.39,ADECCO RECRUITMENT,A00188,2,2020
Allerdale Borough Council,10114,Employee Costs,"Business Support Unit, Devt Services",Agency to Cover Established Post,13/05/2020,451012,193.56,ADECCO RECRUITMENT,A00188,2,2020
Allerdale Borough Council,10401,Employee Costs,Licensing Agency Staff,Agency Staff Costs,13/05/2020,451013,608.91,ADECCO RECRUITMENT,A00188,2,2020
Allerdale Borough Council,15506,Supplies & Services,Environmental Protection,Professional Services,13/05/2020,451014,2083.08,UNITED UTILITIES PLC,A01657,2,2020
Allerdale Borough Council,15506,Supplies & Services,Environmental Protection,Professional Services,13/05/2020,451015,1538.53,UNITED UTILITIES PLC,A01657,2,2020
Allerdale Borough Council,14104,Transport,Waste Company,Repairs & Maintenance,13/05/2020,451016,9828.07,DENNIS EAGLE LIMITED,A02608,2,2020
Allerdale Borough Council,15103,Supplies & Services,COVID19 - General Costs,Purchase of Materials,,451017,30,AMAZON PAYMENTS UK LTD,A02682,2,2020
Allerdale Borough Council,15101,Supplies & Services,Off-street - Owned,Equipment Costs,13/05/2020,451018,4754.88,METRIC GROUP LTD,A00568,2,2020
Allerdale Borough Council,15301,Supplies & Services,Waste Company,Uniforms,13/05/2020,451019,55.02,ARCO LIMITED,A00045,2,2020
Allerdale Borough Council,15301,Supplies & Services,Waste Company,Uniforms,13/05/2020,451020,498.89,ARCO LIMITED,A00045,2,2020
Allerdale Borough Council,15301,Supplies & Services,Waste Company,Uniforms,13/05/2020,451021,18.34,ARCO LIMITED,A00045,2,2020
Allerdale Borough Council,15101,Supplies & Services,Waste Company,Equipment Costs,13/05/2020,451022,216.9,ARCO LIMITED,A00045,2,2020
Allerdale Borough Council,15301,Supplies & Services,Waste Company,Uniforms,13/05/2020,451023,128.38,ARCO LIMITED,A00045,2,2020
Allerdale Borough Council,15302,Supplies & Services,Waste Company,Protective Clothing,13/05/2020,451024,810.24,ARCO LIMITED,A00045,2,2020
Allerdale Borough Council,15302,Supplies & Services,Waste Company,Protective Clothing,13/05/2020,451025,182.4,ARCO LIMITED,A00045,2,2020
Allerdale Borough Council,15302,Supplies & Services,Waste Company,Protective Clothing,13/05/2020,451026,29.75,ARCO LIMITED,A00045,2,2020
Allerdale Borough Council,15302,Supplies & Services,Waste Company,Protective Clothing,13/05/2020,451027,59.5,ARCO LIMITED,A00045,2,2020
Allerdale Borough Council,15302,Supplies & Services,Waste Company,Protective Clothing,13/05/2020,451028,40.25,ARCO LIMITED,A00045,2,2020
Allerdale Borough Council,15301,Supplies & Services,Waste Company,Uniforms,13/05/2020,451029,18.34,ARCO LIMITED,A00045,2,2020
Allerdale Borough Council,15302,Supplies & Services,Waste Company,Protective Clothing,13/05/2020,451030,927.71,ARCO LIMITED,A00045,2,2020
Allerdale Borough Council,15302,Supplies & Services,Waste Company,Protective Clothing,20/05/2020,451031,6,ROMAR INNOVATE LTD,A02293,2,2020
Allerdale Borough Council,15302,Supplies & Services,Waste Company,Protective Clothing,20/05/2020,451032,6,ROMAR INNOVATE LTD,A02293,2,2020
Allerdale Borough Council,15301,Supplies & Services,Waste Company,Uniforms,20/05/2020,451033,59.6,ROMAR INNOVATE LTD,A02293,2,2020
Allerdale Borough Council,15301,Supplies & Services,Waste Company,Uniforms,20/05/2020,451034,1814.12,ROMAR INNOVATE LTD,A02293,2,2020
Allerdale Borough Council,15101,Supplies & Services,Street Scene,Equipment Costs,20/05/2020,451035,37.16,RELIANCE HIGH-TECH LTD,C00123,2,2020
Allerdale Borough Council,12306,Premises,Public Convenience Cleaning,Legionella Inspections and Services,27/05/2020,451036,250,CLEARWATER TECHNOLOGY,A02153,2,2020
Allerdale Borough Council,20304,Third Party Payments,Recycling,Contract Services-Recycling,13/05/2020,451037,1460000,ALLERDALE WASTE SERVICES LIMITED,A02756,2,2020
Allerdale Borough Council,15810,Supplies & Services,IT Services,Software Licences,27/05/2020,451038,20500,WHITESPACE WORK SOFTWARE,A02678,2,2020
Allerdale Borough Council,12305,Premises,Corporate Property Maintenance,Inspections and Services,27/05/2020,451039,435,TYCO FIRE&INTEGRATED SOLUTIONS,A00773,2,2020
Allerdale Borough Council,14105,Transport,Allerdale Fleet,"Fuel, Lubricants & Consumables",,451040,167.01,BP OIL UK LTD ,X00022,2,2020
Allerdale Borough Council,16350,Supplies & Services,Homelessness,Miscellaneous Expenses,13/05/2020,451041,71.44,CASTLES & COASTS,M01448,2,2020
Allerdale Borough Council,16350,Supplies & Services,Homelessness,Miscellaneous Expenses,13/05/2020,451042,360,E & JM POSTLETHWAITE,M01838,2,2020
Allerdale Borough Council,15101,Supplies & Services,Corporate Property Maintenance,Equipment Costs,29/05/2020,451043,1805.33,BARCLAYCARD COMMERCIAL,X00207,2,2020
Allerdale Borough Council,15103,Supplies & Services,COVID19 - General Costs,Purchase of Materials,13/05/2020,451044,15.83,Redacted information - included personal information ,M01839,2,2020
Allerdale Borough Council,10110,Employee Costs,Commissioning Support Pay Group,Salary Sacrifice,13/05/2020,451045,1080.58,TUSKERDIRECT LTD,A02186,2,2020
Allerdale Borough Council,10401,Employee Costs,Housing Improvement,Agency Staff Costs,13/05/2020,451046,712.5,G2 RECRUITMENT SOLUTIONS LTD,C00198,2,2020
Allerdale Borough Council,10401,Employee Costs,Housing Improvement,Agency Staff Costs,13/05/2020,451047,693.75,G2 RECRUITMENT SOLUTIONS LTD,C00198,2,2020
Allerdale Borough Council,15101,Supplies & Services,Street Scene,Equipment Costs,20/05/2020,451048,9.89,RELIANCE HIGH-TECH LTD,C00123,2,2020
Allerdale Borough Council,15302,Supplies & Services,Waste Company,Protective Clothing,20/05/2020,451049,745.4,ROMAR INNOVATE LTD,A02293,2,2020
Allerdale Borough Council,15301,Supplies & Services,Waste Company,Uniforms,20/05/2020,451050,519.36,ROMAR INNOVATE LTD,A02293,2,2020
Allerdale Borough Council,15301,Supplies & Services,Waste Company,Uniforms,20/05/2020,451051,4882.9,ROMAR INNOVATE LTD,A02293,2,2020
Allerdale Borough Council,15301,Supplies & Services,Waste Company,Uniforms,20/05/2020,451052,5206.1,ROMAR INNOVATE LTD,A02293,2,2020
Allerdale Borough Council,15301,Supplies & Services,Waste Company,Uniforms,20/05/2020,451053,157.4,ROMAR INNOVATE LTD,A02293,2,2020
Allerdale Borough Council,15806,Supplies & Services,IT Services,Computer Agencies,13/05/2020,451054,3000,FIREBRAND TRAINING LTD,A02761,2,2020
Allerdale Borough Council,16300,Supplies & Services,Homelessness,Budget-Miscellaneous,13/05/2020,451055,100,Redacted information - included personal information ,A02762,2,2020
Allerdale Borough Council,16300,Supplies & Services,Homelessness,Budget-Miscellaneous,13/05/2020,451056,80,Redacted information - included personal information ,A02762,2,2020
Allerdale Borough Council,16300,Supplies & Services,Homelessness,Budget-Miscellaneous,13/05/2020,451057,650,Redacted information - included personal information ,A02762,2,2020
Allerdale Borough Council,15506,Supplies & Services,Banking and Interest,Professional Services,27/05/2020,451058,9500,LINK TREASURY SERVICES LTD,A02551,2,2020
Allerdale Borough Council,10114,Employee Costs,"Revenues, Benefits & Recovery Paygroup",Agency to Cover Established Post,20/05/2020,451059,407.28,ADECCO RECRUITMENT,A00188,2,2020
Allerdale Borough Council,15401,Supplies & Services,Corporate Postage and Stationary,General Stationery,20/05/2020,451060,18.9,LYRECO,A00043,2,2020
Allerdale Borough Council,10114,Employee Costs,"Revenues, Benefits & Recovery Paygroup",Agency to Cover Established Post,20/05/2020,451061,375.02,ADECCO RECRUITMENT,A00188,2,2020
Allerdale Borough Council,10401,Employee Costs,Housing Improvement,Agency Staff Costs,20/05/2020,451062,693.75,G2 RECRUITMENT SOLUTIONS LTD,C00198,2,2020
Allerdale Borough Council,12405,Premises,Homelessness,Rentals and Lease Charges,20/05/2020,451063,270,CUMBERLAND HOTEL,A02415,2,2020
Allerdale Borough Council,16101,Supplies & Services,Planning and Development,Statutory Notices,,451064,491.4,NEWSQUEST MEDIA GROUP,A02348,2,2020
Allerdale Borough Council,12405,Premises,Homelessness,Rentals and Lease Charges,20/05/2020,451065,385,CUMBERLAND HOTEL,A02415,2,2020
Allerdale Borough Council,12405,Premises,Homelessness,Rentals and Lease Charges,20/05/2020,451066,315,CUMBERLAND HOTEL,A02415,2,2020
Allerdale Borough Council,12405,Premises,Homelessness,Rentals and Lease Charges,20/05/2020,451067,315,CUMBERLAND HOTEL,A02415,2,2020
Allerdale Borough Council,12405,Premises,Homelessness,Rentals and Lease Charges,20/05/2020,451068,330,CUMBERLAND HOTEL,A02415,2,2020
Allerdale Borough Council,12405,Premises,Homelessness,Rentals and Lease Charges,20/05/2020,451069,385,CUMBERLAND HOTEL,A02415,2,2020
Allerdale Borough Council,12405,Premises,Homelessness,Rentals and Lease Charges,20/05/2020,451070,330,CUMBERLAND HOTEL,A02415,2,2020
Allerdale Borough Council,12405,Premises,Homelessness,Rentals and Lease Charges,20/05/2020,451071,225,CUMBERLAND HOTEL,A02415,2,2020
Allerdale Borough Council,12405,Premises,Homelessness,Rentals and Lease Charges,20/05/2020,451072,385,CUMBERLAND HOTEL,A02415,2,2020
Allerdale Borough Council,12405,Premises,Homelessness,Rentals and Lease Charges,20/05/2020,451073,385,CUMBERLAND HOTEL,A02415,2,2020
Allerdale Borough Council,12405,Premises,Homelessness,Rentals and Lease Charges,20/05/2020,451074,275,CUMBERLAND HOTEL,A02415,2,2020
Allerdale Borough Council,12405,Premises,Homelessness,Rentals and Lease Charges,20/05/2020,451075,165,CUMBERLAND HOTEL,A02415,2,2020
Allerdale Borough Council,12405,Premises,Homelessness,Rentals and Lease Charges,20/05/2020,451076,440,CUMBERLAND HOTEL,A02415,2,2020
Allerdale Borough Council,12405,Premises,Homelessness,Rentals and Lease Charges,20/05/2020,451077,385,CUMBERLAND HOTEL,A02415,2,2020
Allerdale Borough Council,12405,Premises,Homelessness,Rentals and Lease Charges,20/05/2020,451078,385,CUMBERLAND HOTEL,A02415,2,2020
Allerdale Borough Council,12405,Premises,Homelessness,Rentals and Lease Charges,20/05/2020,451079,225,CUMBERLAND HOTEL,A02415,2,2020
Allerdale Borough Council,12405,Premises,Homelessness,Rentals and Lease Charges,20/05/2020,451080,220,CUMBERLAND HOTEL,A02415,2,2020
Allerdale Borough Council,12405,Premises,Homelessness,Rentals and Lease Charges,20/05/2020,451081,385,CUMBERLAND HOTEL,A02415,2,2020
Allerdale Borough Council,12405,Premises,Homelessness,Rentals and Lease Charges,20/05/2020,451082,220,CUMBERLAND HOTEL,A02415,2,2020
Allerdale Borough Council,12405,Premises,Homelessness,Rentals and Lease Charges,20/05/2020,451083,385,CUMBERLAND HOTEL,A02415,2,2020
Allerdale Borough Council,12405,Premises,Homelessness,Rentals and Lease Charges,20/05/2020,451084,385,CUMBERLAND HOTEL,A02415,2,2020
Allerdale Borough Council,12405,Premises,Homelessness,Rentals and Lease Charges,20/05/2020,451085,385,CUMBERLAND HOTEL,A02415,2,2020
Allerdale Borough Council,15103,Supplies & Services,Solway AONB,Purchase of Materials,20/05/2020,451086,612.5,ASPATRIA FARMERS LIMITED,A00736,2,2020
Allerdale Borough Council,15401,Supplies & Services,Corporate Postage and Stationary,General Stationery,27/05/2020,451087,405.17,LYRECO,A00043,2,2020
Allerdale Borough Council,14105,Transport,Allerdale Fleet,"Fuel, Lubricants & Consumables",,451088,279.91,BP OIL UK LTD ,X00022,2,2020
Allerdale Borough Council,33112,Income,Planning and Development,Planning Fees Income,20/05/2020,451089,924,MITCHELLS,M01843,2,2020
Allerdale Borough Council,33117,Income,Off-street - Owned,Car Parks - Income from Machines,20/05/2020,451090,180,Redacted information - included personal information ,M01841,2,2020
Allerdale Borough Council,33117,Income,Off-street - Owned,Car Parks - Income from Machines,20/05/2020,451091,16.58,Redacted information - included personal information ,M01842,2,2020
Allerdale Borough Council,33117,Income,Off-street - Owned,Car Parks - Income from Machines,20/05/2020,451092,60,Redacted information - included personal information ,M01840,2,2020
Allerdale Borough Council,15850,Supplies & Services,Solway Coast AONB Core Funding,General Computer Costs,29/05/2020,451094,730.79,BARCLAYCARD COMMERCIAL,X00207,2,2020
Allerdale Borough Council,16350,Supplies & Services,Homelessness,Miscellaneous Expenses,20/05/2020,451095,350,Redacted information - included personal information ,M01845,2,2020
Allerdale Borough Council,16350,Supplies & Services,Homelessness,Miscellaneous Expenses,20/05/2020,451096,413.44,HOUSING 21,M01846,2,2020
Allerdale Borough Council,33113,Income,Building Control - Chargeable,Building Control Fees Income,20/05/2020,451097,147.02,Redacted information - included personal information ,M01844,2,2020
Allerdale Borough Council,15302,Supplies & Services,COVID19 - General Costs,Protective Clothing,20/05/2020,451098,29.82,ROMAR INNOVATE LTD,A02293,2,2020
Allerdale Borough Council,15601,Supplies & Services,Corporate Postage and Stationary,Postage,20/05/2020,451099,1139.28,UK MAIL GROUP PLC,A02371,2,2020
Allerdale Borough Council,15601,Supplies & Services,Corporate Postage and Stationary,Postage,20/05/2020,451100,906.64,UK MAIL GROUP PLC,A02371,2,2020
Allerdale Borough Council,10401,Employee Costs,Licensing Agency Staff,Agency Staff Costs,20/05/2020,451101,508.1,ADECCO RECRUITMENT,A00188,2,2020
Allerdale Borough Council,15506,Supplies & Services,Environmental Protection,Professional Services,,451102,222.08,HAYS SPECIALIST RECRUITMENT LTD,A00280,2,2020
Allerdale Borough Council,15101,Supplies & Services,Off-street - Owned,Equipment Costs,,451103,410,METRIC GROUP LTD,A00568,2,2020
Allerdale Borough Council,15507,Supplies & Services,Land Charges Service,Searches,20/05/2020,451104,360,CUMBRIA CC,A00066,2,2020
Allerdale Borough Council,15101,Supplies & Services,Environmental Protection,Equipment Costs,,451105,19.49,AMAZON PAYMENTS UK LTD,A02682,2,2020
Allerdale Borough Council,15550,Supplies & Services,Estates,General-Service Related Fees,20/05/2020,451106,1332,CIPFA BUSINESS LIMITED,A01791,2,2020
Allerdale Borough Council,15101,Supplies & Services,Public Building Cleaning,Equipment Costs,20/05/2020,451107,302.38,WF CASCADE,A01794,2,2020
Allerdale Borough Council,20300,Third Party Payments,Maryport Wave,Budget-Contract Services,20/05/2020,451108,15953.33,GREENWICH LEISURE LTD,A00136,2,2020
Allerdale Borough Council,20300,Third Party Payments,Sports & Leisure Centres,Budget-Contract Services,20/05/2020,451109,53373,GREENWICH LEISURE LTD,A00136,2,2020
Allerdale Borough Council,16003,Supplies & Services,Off-street - Owned,Security of Cash Movements,27/05/2020,451110,2577.3,G4S CASH SOLUTIONS (UK) LTD,A02421,2,2020
Allerdale Borough Council,15507,Supplies & Services,Land Charges Service,Searches,27/05/2020,451111,1794,CUMBRIA CC ,A00066,2,2020
Allerdale Borough Council,12102,Premises,Tenanted Properties,Demolition,20/05/2020,451112,600,ASHCROFT DEMOLITION (CUMBRIA) LTD,C00197,2,2020
Allerdale Borough Council,15103,Supplies & Services,Environmental Protection,Purchase of Materials,20/05/2020,451113,333.33,WHATAHOOT LIMITED,A02757,2,2020
Allerdale Borough Council,10101,Employee Costs,IT Services Pay Group,Basic Pay,,451114,2117.03,REED PERSONNEL SERVICES,A00345,2,2020
Allerdale Borough Council,16100,Supplies & Services,Communications and Marketing,Budget-Advertising and Promotions,20/05/2020,451115,160,EWANRIGG LOCAL TRUST,M01144,2,2020
Allerdale Borough Council,15302,Supplies & Services,Waste Company,Protective Clothing,20/05/2020,451116,128.6,ROMAR INNOVATE LTD,A02293,2,2020
Allerdale Borough Council,15302,Supplies & Services,Waste Company,Protective Clothing,20/05/2020,451117,11019.1,ROMAR INNOVATE LTD,A02293,2,2020
Allerdale Borough Council,15704,Supplies & Services,IT Services,Mobile Phones,27/05/2020,451118,21,EE LIMITED,X00290,2,2020
Allerdale Borough Council,12102,Premises,Tenanted Properties,Demolition,20/05/2020,451119,-200,ASHCROFT DEMOLITION (CUMBRIA) LTD,C00197,2,2020
Allerdale Borough Council,15601,Supplies & Services,Corporate Postage and Stationary,Postage,20/05/2020,451120,388.45,ROYAL MAIL LETTERS,X00021,2,2020
Allerdale Borough Council,15103,Supplies & Services,Environmental Protection,Purchase of Materials,20/05/2020,451121,333.33,WHATAHOOT LIMITED,A02757,2,2020
Allerdale Borough Council,12409,Premises,Insurances,Buildings and Contents Insurance,20/05/2020,451122,1724.44,ZURICH MUNICIPAL,A00429,2,2020
Allerdale Borough Council,12409,Premises,Insurances,Buildings and Contents Insurance,20/05/2020,451123,78241.31,ZURICH MUNICIPAL,A00429,2,2020
Allerdale Borough Council,12409,Premises,Insurances,Buildings and Contents Insurance,20/05/2020,451124,728,ZURICH MUNICIPAL,A00429,2,2020
Allerdale Borough Council,12402,Premises,Tenanted Properties,Electricity,20/05/2020,451125,13.4,N POWER,X00015,2,2020
Allerdale Borough Council,12402,Premises,Tenanted Properties,Electricity,20/05/2020,451126,7.65,N POWER,X00015,2,2020
Allerdale Borough Council,12402,Premises,Tenanted Properties,Electricity,20/05/2020,451127,13.57,N POWER,X00015,2,2020
Allerdale Borough Council,12501,Premises,Tenanted Properties,NNDR and Other Occupancy Charges,20/05/2020,451128,2739.41,ALLERDALE,A00342,2,2020
Allerdale Borough Council,50199,Capital Expenditure,Strategic Acquisitions & Development,Purchase Price (Capital),18/05/2020,451129,50000,MILBURNS SOLICITORS LTD,M00699,2,2020
Allerdale Borough Council,15402,Supplies & Services,Multi-functional Printers,Photocopier Charges,27/05/2020,451130,20.25,KONICA MINOLTA BUSINESS SOLUTIONS UK LTD,A01556,2,2020
Allerdale Borough Council,15402,Supplies & Services,Multi-functional Printers,Photocopier Charges,27/05/2020,451131,1620.41,KONICA MINOLTA BUSINESS SOLUTIONS UK LTD,A01556,2,2020
Allerdale Borough Council,15810,Supplies & Services,TELCO IN A BOX (TIAB),Software Licences,,451132,3156,WHITESPACE WORK SOFTWARE,A02678,2,2020
Allerdale Borough Council,15810,Supplies & Services,Arcus,Software Licences,,451133,453.68,ARCUS GLOBAL LTD,A02496,2,2020
Allerdale Borough Council,15811,Supplies & Services,IT Services,Software Maintenance,27/05/2020,451134,210.93,PHOENIX SOFTWARE LTD,A00229,2,2020
Allerdale Borough Council,15402,Supplies & Services,Multi-functional Printers,Photocopier Charges,27/05/2020,451135,1605.69,KONICA MINOLTA BUSINESS SOLUTIONS UK LTD,A01556,2,2020
Allerdale Borough Council,15811,Supplies & Services,IT Services,Software Maintenance,29/05/2020,451136,340,SAGE (UK) LTD ,A01911,2,2020
Allerdale Borough Council,15811,Supplies & Services,IT Services,Software Maintenance,29/05/2020,451137,340,SAGE (UK) LTD,A01911,2,2020
Allerdale Borough Council,15803,Supplies & Services,IT Costs (Allerdale Only),Hardware Purchase,,451138,6350,TOTAL COMPUTERS,A02378,2,2020
Allerdale Borough Council,15506,Supplies & Services,Legal Services,Professional Services,27/05/2020,451139,364,INSTITUTE OF LEGAL EXECUTIVES,A00711,2,2020
Allerdale Borough Council,10401,Employee Costs,Housing Improvement,Agency Staff Costs,27/05/2020,451140,693.75,G2 RECRUITMENT SOLUTIONS LTD,C00198,2,2020
Allerdale Borough Council,12405,Premises,Homelessness,Rentals and Lease Charges,27/05/2020,451141,3398.2,IMPACT HOUSING ASSOCIATION LTD,A00236,2,2020
Allerdale Borough Council,16300,Supplies & Services,Cumbria CBL Partnership,Budget-Miscellaneous,27/05/2020,451142,2429.87,SOUTH LAKELAND DISTRICT COUNCIL,A00569,2,2020
Allerdale Borough Council,16300,Supplies & Services,Cumbria CBL Partnership,Budget-Miscellaneous,27/05/2020,451143,1500,SOUTH LAKELAND DISTRICT COUNCIL,A00569,2,2020
Allerdale Borough Council,16001,Supplies & Services,Banking and Interest,Bank Charges and Fees,27/05/2020,451144,1063.52,ALLPAY.NET LIMITED,A00714,2,2020
Allerdale Borough Council,16001,Supplies & Services,Banking and Interest,Bank Charges and Fees,27/05/2020,451145,37.12,ALLPAY.NET LIMITED,A00714,2,2020
Allerdale Borough Council,16001,Supplies & Services,Banking and Interest,Bank Charges and Fees,27/05/2020,451146,10,ALLPAY.NET LIMITED,A00714,2,2020
Allerdale Borough Council,16001,Supplies & Services,Banking and Interest,Bank Charges and Fees,27/05/2020,451147,10,ALLPAY.NET LIMITED,A00714,2,2020
Allerdale Borough Council,16001,Supplies & Services,Banking and Interest,Bank Charges and Fees,27/05/2020,451148,10,ALLPAY.NET LIMITED,A00714,2,2020
Allerdale Borough Council,16001,Supplies & Services,Banking and Interest,Bank Charges and Fees,27/05/2020,451149,11.77,ALLPAY.NET LIMITED,A00714,2,2020
Allerdale Borough Council,16001,Supplies & Services,Banking and Interest,Bank Charges and Fees,27/05/2020,451150,11.77,ALLPAY.NET LIMITED,A00714,2,2020
Allerdale Borough Council,16001,Supplies & Services,Banking and Interest,Bank Charges and Fees,27/05/2020,451151,10,ALLPAY.NET LIMITED,A00714,2,2020
Allerdale Borough Council,16001,Supplies & Services,Banking and Interest,Bank Charges and Fees,27/05/2020,451152,13.52,ALLPAY.NET LIMITED,A00714,2,2020
Allerdale Borough Council,16001,Supplies & Services,Banking and Interest,Bank Charges and Fees,27/05/2020,451153,12.17,ALLPAY.NET LIMITED,A00714,2,2020
Allerdale Borough Council,12301,Premises,Corporate Property Maintenance,Security,,451154,2556.88,G4S SECURE SOLUTIONS,A01597,2,2020
Allerdale Borough Council,15506,Supplies & Services,Legal Services,Professional Services,,451155,150,KINGS CHAMBERS,A00348,2,2020
Allerdale Borough Council,12402,Premises,Corporate Property Maintenance,Electricity,,451156,190,AMEY METERING LIMITED,A01503,2,2020
Allerdale Borough Council,15100,Supplies & Services,Homelessness,"Budget-Equipment, Furniture & Materials",,451157,337.5,AMAZON PAYMENTS UK LTD,A02682,2,2020
Allerdale Borough Council,15100,Supplies & Services,COVID-19 - Homelessness,"Budget-Equipment, Furniture & Materials",27/05/2020,451158,160,Redacted information - included personal information ,A02762,2,2020
Allerdale Borough Council,15506,Supplies & Services,Environmental Protection,Professional Services,,451159,277.6,HAYS SPECIALIST RECRUITMENT LTD,A00280,2,2020
Allerdale Borough Council,15501,Supplies & Services,Disposal of Allerdale Sites,Consultants Fees,,451160,817.5,HESKETH ECOLOGY,A01999,2,2020
Allerdale Borough Council,15704,Supplies & Services,COVID-19 - Homelessness,Mobile Phones,,451161,84.97,BARCLAYCARD COMMERCIAL,X00207,2,2020
Allerdale Borough Council,15101,Supplies & Services,Head of Financial Services,Equipment Costs,29/05/2020,451162,35.98,BARCLAYCARD COMMERCIAL,X00207,2,2020
Allerdale Borough Council,14104,Transport,Property Services Pay Group,Repairs & Maintenance,,451163,930.65,BARCLAYCARD COMMERCIAL,X00207,2,2020
Allerdale Borough Council,10204,Employee Costs,Allerdale Options,Staff Reward Payments,,451164,230.5,BARCLAYCARD COMMERCIAL,X00207,2,2020
Allerdale Borough Council,15501,Supplies & Services,COVID-19 - Homelessness,Consultants Fees,,451165,241.99,BARCLAYCARD COMMERCIAL,X00207,2,2020
Allerdale Borough Council,15508,Supplies & Services,Corporate Improvement Team,Subscriptions,29/05/2020,451166,384,BARCLAYCARD COMMERCIAL,X00207,2,2020
Allerdale Borough Council,15101,Supplies & Services,Homelessness,Equipment Costs,,451167,4.17,BARCLAYCARD COMMERCIAL,X00207,2,2020
Allerdale Borough Council,16350,Supplies & Services,Homelessness,Miscellaneous Expenses,27/05/2020,451168,350,Redacted information - included personal information ,M01847,2,2020
Allerdale Borough Council,16350,Supplies & Services,Homelessness,Miscellaneous Expenses,27/05/2020,451169,282,YASCOM PROPERTIES,M00733,2,2020
Allerdale Borough Council,16350,Supplies & Services,Homelessness,Miscellaneous Expenses,27/05/2020,451170,282,YASCOM PROPERTIES,M00733,2,2020
Allerdale Borough Council,14105,Transport,Allerdale Fleet,"Fuel, Lubricants & Consumables",,451171,167.21,BP OIL UK LTD ,X00022,2,2020
Allerdale Borough Council,16300,Supplies & Services,Cumbria CBL Partnership,Budget-Miscellaneous,27/05/2020,451172,949.56,SOUTH LAKELAND DISTRICT COUNCIL,A00569,2,2020
Allerdale Borough Council,15501,Supplies & Services,Waste Contract  Operational Costs,Consultants Fees,27/05/2020,451174,7735.3,BEVAN BRITTAN LLP,A02181,2,2020
Allerdale Borough Council,15501,Supplies & Services,Waste Contract  Operational Costs,Consultants Fees,27/05/2020,451175,2637.78,BEVAN BRITTAN LLP,A02181,2,2020
Allerdale Borough Council,15103,Supplies & Services,COVID19 - General Costs,Purchase of Materials,,451176,48.64,AMAZON PAYMENTS UK LTD,A02682,2,2020
Allerdale Borough Council,15103,Supplies & Services,COVID19 - General Costs,Purchase of Materials,,451177,48.64,AMAZON PAYMENTS UK LTD,A02682,2,2020
Allerdale Borough Council,16300,Supplies & Services,Tourism Incentive,Budget-Miscellaneous,,451178,1821.67,NEWMIND INTERNET CONSULTANCY LTD ,A02760,2,2020
Allerdale Borough Council,20150,Third Party Payments,Footway Lighting,General Partnership Service Fees,27/05/2020,451179,3448.69,CUMBRIA CC ,A00066,2,2020
Allerdale Borough Council,15503,Supplies & Services,Legal Services,Court and Tribunal Costs,29/05/2020,451180,255,HM COURTS & TRIBUNAL SERVICE ,A02221,2,2020
Allerdale Borough Council,15601,Supplies & Services,Corporate Postage and Stationary,Postage,27/05/2020,451181,4000,ROYAL MAIL LETTERS,X00021,2,2020
Allerdale Borough Council,12408,Premises,Public Convenience Cleaning,Water & Sewage,27/05/2020,451182,14.82,WATERPLUS,X00011,2,2020
Allerdale Borough Council,15503,Supplies & Services,Legal Services,Court and Tribunal Costs,29/05/2020,451183,595,HM COURTS & TRIBUNAL SERVICE ,A02221,2,2020
Allerdale Borough Council,15601,Supplies & Services,Corporate Postage and Stationary,Postage,27/05/2020,451184,48.95,ROYAL MAIL LETTERS,X00021,2,2020
Allerdale Borough Council,16150,Supplies & Services,Remembering the Solway,General Promotions,27/05/2020,451185,127.5,Redacted information - included personal information ,A02671,2,2020
Allerdale Borough Council,15100,Supplies & Services,Pest Control,"Budget-Equipment, Furniture & Materials",,451186,14.78,AMAZON PAYMENTS UK LTD,A02682,2,2020
Allerdale Borough Council,15100,Supplies & Services,Homelessness,"Budget-Equipment, Furniture & Materials",,451187,192.88,ARGOS BUSINESS SOLUTION-STORE COLLECTION,A00411,2,2020
Allerdale Borough Council,15100,Supplies & Services,Homelessness,"Budget-Equipment, Furniture & Materials",,451188,-337.5,AMAZON PAYMENTS UK LTD,A02682,2,2020
Allerdale Borough Council,12201,Premises,Multi Storey Car Park Utilities & Maint,Internal Maintenance,,451189,318,TIVOLI GROUP LTD,A02568,2,2020
Allerdale Borough Council,12301,Premises,Multi Storey Car Park Utilities & Maint,Security,,451190,1086.09,COMPASS SERVICES GROUP,A00839,2,2020
Allerdale Borough Council,75103,Holding and Control Accounts,Payroll Suspense Account,PAYROLL  May 2020 Travel & Subsistence  ,,,6847.7,INLAND REVENUE,X00038,2,2020
